[Event "*** Titled Tuesday Blitz"]
[Site "Chess.com"]
[Date "2018.06.05"]
[Round "8"]
[White "Aleksandr_Kholin"]
[Black "Slovak_fighter2000"]
[Result "1-0"]
[WhiteElo "2437"]
[BlackElo "2388"]
[TimeControl "180+2"]
[EndTime "14:54:15 PDT"]
[Termination "Aleksandr_Kholin won by resignation"]

1. d4 {[%clk 0:03:01.9]} 1... Nf6 {[%clk 0:03:00.7]} 2. c4 {[%clk 0:02:56.1]}
2... e6 {[%clk 0:03:01.4]} 3. Nc3 {[%clk 0:02:55.5]} 3... d5 {[%clk 0:03:03.3]}
4. Nf3 {[%clk 0:02:55]} 4... c5 {[%clk 0:03:04]} 5. cxd5 {[%clk 0:02:54.7]} 5...
Nxd5 {[%clk 0:03:00.8]} 6. e4 {[%clk 0:02:54.7]} 6... Nxc3 {[%clk 0:02:54.4]} 7.
bxc3 {[%clk 0:02:56.5]} 7... cxd4 {[%clk 0:02:56.3]} 8. cxd4 {[%clk 0:02:57.4]}
8... Bb4+ {[%clk 0:02:54.8]} 9. Bd2 {[%clk 0:02:58.8]} 9... Bxd2+ {[%clk
0:02:55.8]} 10. Qxd2 {[%clk 0:03:00.7]} 10... O-O {[%clk 0:02:57.6]} 11. Bc4
{[%clk 0:03:01.7]} 11... Nd7 {[%clk 0:02:58.7]} 12. O-O {[%clk 0:03:02.6]} 12...
b6 {[%clk 0:02:59.9]} 13. Rfe1 {[%clk 0:03:02.7]} 13... Bb7 {[%clk 0:03:00.6]}
14. Rad1 {[%clk 0:03:04.1]} 14... Nf6 {[%clk 0:03:01.4]} 15. Qf4 {[%clk
0:03:04.5]} 15... h6 {[%clk 0:03:01.5]} 16. h4 {[%clk 0:03:03.9]} 16... Rc8
{[%clk 0:02:58]} 17. Bb3 {[%clk 0:03:04.3]} 17... Nh5 {[%clk 0:02:55.4]} 18. Qg4
{[%clk 0:03:03.2]} 18... Nf6 {[%clk 0:02:56.6]} 19. Qf4 {[%clk 0:03:04]} 19...
Nh5 {[%clk 0:02:57.2]} 20. Qh2 {[%clk 0:03:04.9]} 20... Qf6 {[%clk 0:02:48]} 21.
Ne5 {[%clk 0:03:02.3]} 21... Rfd8 {[%clk 0:02:44.2]} 22. Re3 {[%clk 0:02:59.5]}
22... Qf4 {[%clk 0:02:38.2]} 23. g3 {[%clk 0:02:57.6]} 23... Qf6 {[%clk
0:02:22.8]} 24. Rf3 {[%clk 0:02:56.9]} 24... Qe7 {[%clk 0:02:03]} 25. Rxf7
{[%clk 0:02:55.7]} 25... Qxf7 {[%clk 0:02:02.1]} 26. Nxf7 {[%clk 0:02:55.5]}
26... Kxf7 {[%clk 0:02:04]} 27. g4 {[%clk 0:02:54]} 27... Nf6 {[%clk 0:02:04.5]}
28. f3 {[%clk 0:02:51.5]} 28... Rc3 {[%clk 0:01:57.3]} 29. Qf4 {[%clk
0:02:48.7]} 29... Ke7 {[%clk 0:01:49.3]} 30. Rc1 {[%clk 0:02:45.5]} 30... Rxc1+
{[%clk 0:01:39.2]} 31. Qxc1 {[%clk 0:02:47.4]} 31... Rxd4 {[%clk 0:01:40.6]} 32.
Qa3+ {[%clk 0:02:45.7]} 32... Kd8 {[%clk 0:01:35.7]} 33. Qxa7 {[%clk 0:02:42.7]}
33... Kc7 {[%clk 0:01:35.2]} 34. Bxe6 {[%clk 0:02:37.2]} 34... Rd3 {[%clk
0:01:30.9]} 35. Kf2 {[%clk 0:02:32.9]} 35... Rc3 {[%clk 0:01:20.1]} 36. Qa4
{[%clk 0:02:26.4]} 36... Bc6 {[%clk 0:01:17.4]} 37. Qb4 {[%clk 0:02:25.2]} 37...
Rc2+ {[%clk 0:01:15.9]} 38. Kg3 {[%clk 0:02:25.7]} 38... Bd7 {[%clk 0:01:02.1]}
39. Qe7 {[%clk 0:02:16.3]} 39... Rc3 {[%clk 0:00:55.9]} 40. Bxd7 {[%clk
0:02:06.3]} 40... Nxd7 {[%clk 0:00:56.2]} 41. Qxg7 {[%clk 0:02:07]} 41... Rb3
{[%clk 0:00:57.6]} 1-0

[Event "*** Titled Tuesday Blitz"]
[Site "Chess.com"]
[Date "2018.06.05"]
[Round "8"]
[White "Fandorine"]
[Black "BillieKimbah"]
[Result "0-1"]
[WhiteElo "2740"]
[BlackElo "2792"]
[TimeControl "180+2"]
[EndTime "14:54:34 PDT"]
[Termination "BillieKimbah won by resignation"]

1. e4 {[%clk 0:03:01.9]} 1... c5 {[%clk 0:03:00.6]} 2. Nf3 {[%clk 0:03:00.3]}
2... e6 {[%clk 0:03:01.8]} 3. d4 {[%clk 0:03:00.4]} 3... cxd4 {[%clk 0:03:03]}
4. Nxd4 {[%clk 0:03:02.3]} 4... Nc6 {[%clk 0:03:04.2]} 5. Nc3 {[%clk 0:03:03.8]}
5... Qc7 {[%clk 0:03:05.3]} 6. Be3 {[%clk 0:03:05.2]} 6... a6 {[%clk 0:03:06.4]}
7. Qd2 {[%clk 0:03:06.7]} 7... Nf6 {[%clk 0:03:06]} 8. f3 {[%clk 0:03:07.8]}
8... Bb4 {[%clk 0:02:57.2]} 9. a3 {[%clk 0:03:06.2]} 9... Be7 {[%clk 0:02:57]}
10. O-O-O {[%clk 0:03:07.1]} 10... b5 {[%clk 0:02:55]} 11. g4 {[%clk 0:03:08.2]}
11... O-O {[%clk 0:02:50.4]} 12. h4 {[%clk 0:03:05.9]} 12... Rb8 {[%clk
0:02:50.5]} 13. h5 {[%clk 0:03:01.3]} 13... b4 {[%clk 0:02:43.3]} 14. axb4
{[%clk 0:03:01.6]} 14... Bxb4 {[%clk 0:02:43.4]} 15. h6 {[%clk 0:02:28.8]} 15...
g6 {[%clk 0:02:43]} 16. Nxc6 {[%clk 0:02:00.5]} 16... dxc6 {[%clk 0:02:39.2]}
17. Bd4 {[%clk 0:01:50.6]} 17... e5 {[%clk 0:02:37.7]} 18. Qg5 {[%clk
0:01:50.8]} 18... Nd7 {[%clk 0:02:30.6]} 19. Bf2 {[%clk 0:01:51.2]} 19... Re8
{[%clk 0:02:08.5]} 20. Bc4 {[%clk 0:01:44.9]} 20... Be7 {[%clk 0:02:08.5]} 21.
Qe3 {[%clk 0:01:31.8]} 21... Nc5 {[%clk 0:02:07.7]} 22. Bh4 {[%clk 0:01:17.8]}
22... Qb6 {[%clk 0:01:55.3]} 23. Kd2 {[%clk 0:00:58.6]} 23... Bxh4 {[%clk
0:01:27.5]} 24. Rxh4 {[%clk 0:00:59.2]} 24... Qd8+ {[%clk 0:01:28]} 25. Kc1
{[%clk 0:00:48.7]} 25... Qxh4 {[%clk 0:01:26.9]} 26. Qxc5 {[%clk 0:00:50.3]}
26... Qxh6+ {[%clk 0:01:25.2]} 27. Kb1 {[%clk 0:00:51.3]} 27... Be6 {[%clk
0:01:24.8]} 28. Bxa6 {[%clk 0:00:46.1]} 28... Qf8 {[%clk 0:01:25.3]} 29. Qxf8+
{[%clk 0:00:41.5]} 29... Kxf8 {[%clk 0:01:25.8]} 30. Na4 {[%clk 0:00:43.4]}
30... Red8 {[%clk 0:01:23.3]} 31. Rh1 {[%clk 0:00:43.9]} 31... Kg7 {[%clk
0:01:14.6]} 32. Kc1 {[%clk 0:00:42.8]} 32... Ra8 {[%clk 0:01:10.6]} 33. Nc5
{[%clk 0:00:42.5]} 33... Rxa6 {[%clk 0:01:09]} 34. Nxa6 {[%clk 0:00:43]} 34...
Ra8 {[%clk 0:01:09.9]} 0-1

[Event "*** Titled Tuesday Blitz"]
[Site "Chess.com"]
[Date "2018.06.05"]
[Round "8"]
[White "TigranLPetrosyan"]
[Black "carlesdc96"]
[Result "1-0"]
[WhiteElo "2817"]
[BlackElo "2585"]
[TimeControl "180+2"]
[EndTime "14:54:37 PDT"]
[Termination "TigranLPetrosyan won by resignation"]

1. Nf3 {[%clk 0:03:01.9]} 1... Nf6 {[%clk 0:03:00.5]} 2. g3 {[%clk 0:03:03.8]}
2... b6 {[%clk 0:02:59.8]} 3. Bg2 {[%clk 0:03:05.7]} 3... Bb7 {[%clk 0:03:01.6]}
4. O-O {[%clk 0:03:07.1]} 4... c5 {[%clk 0:03:02.8]} 5. d3 {[%clk 0:03:08.4]}
5... d6 {[%clk 0:03:03.9]} 6. e4 {[%clk 0:03:09.4]} 6... Nbd7 {[%clk 0:03:04.7]}
7. Nh4 {[%clk 0:03:10.2]} 7... Qc7 {[%clk 0:03:05.4]} 8. f4 {[%clk 0:03:11.6]}
8... e6 {[%clk 0:03:06.2]} 9. f5 {[%clk 0:03:12.3]} 9... Be7 {[%clk 0:03:04.5]}
10. fxe6 {[%clk 0:03:12]} 10... fxe6 {[%clk 0:03:05.1]} 11. Nf3 {[%clk
0:03:13.2]} 11... h6 {[%clk 0:02:43.9]} 12. a4 {[%clk 0:02:40]} 12... g5 {[%clk
0:02:31.9]} 13. Nc3 {[%clk 0:02:36.7]} 13... a6 {[%clk 0:02:32.1]} 14. e5 {[%clk
0:02:30.3]} 14... Nxe5 {[%clk 0:02:23.9]} 15. Nxe5 {[%clk 0:02:30.1]} 15... dxe5
{[%clk 0:02:24.9]} 16. Bxb7 {[%clk 0:02:22.3]} 16... Qxb7 {[%clk 0:02:26.8]} 17.
Qe2 {[%clk 0:02:22.6]} 17... e4 {[%clk 0:02:19.8]} 18. Nxe4 {[%clk 0:02:16.4]}
18... Nxe4 {[%clk 0:02:18.9]} 19. Qh5+ {[%clk 0:02:10.6]} 19... Kd8 {[%clk
0:02:16.3]} 20. dxe4 {[%clk 0:01:57.9]} 20... Qxe4 {[%clk 0:02:08.8]} 21. Bd2
{[%clk 0:01:58.7]} 21... Kc7 {[%clk 0:01:55.5]} 22. Rae1 {[%clk 0:01:53.2]}
22... Qd4+ {[%clk 0:01:49.1]} 23. Be3 {[%clk 0:01:53.1]} 23... Qd7 {[%clk
0:01:46.1]} 24. a5 {[%clk 0:01:41]} 24... Raf8 {[%clk 0:01:26.9]} 25. axb6+
{[%clk 0:01:40.6]} 25... Kxb6 {[%clk 0:01:27.5]} 26. b4 {[%clk 0:01:41.6]} 26...
Qd5 {[%clk 0:01:21.9]} 27. Rf7 {[%clk 0:01:32.6]} 27... Bd6 {[%clk 0:01:08.4]}
28. Rd1 {[%clk 0:00:57]} 28... Qe5 {[%clk 0:00:48.3]} 29. Rxd6+ {[%clk 0:00:53]}
29... Kb5 {[%clk 0:00:42.7]} 30. Qe2+ {[%clk 0:00:53.7]} 30... c4 {[%clk
0:00:43.3]} 31. Rb6+ {[%clk 0:00:53.9]} 31... Ka4 {[%clk 0:00:43.1]} 32. Rxa6+
{[%clk 0:00:54.9]} 1-0

[Event "*** Titled Tuesday Blitz"]
[Site "Chess.com"]
[Date "2018.06.05"]
[Round "8"]
[White "Rish_97"]
[Black "Kubas1010"]
[Result "0-1"]
[WhiteElo "2295"]
[BlackElo "2387"]
[TimeControl "180+2"]
[EndTime "14:54:37 PDT"]
[Termination "Kubas1010 won by resignation"]

1. d4 {[%clk 0:03:01.9]} 1... d5 {[%clk 0:02:55.3]} 2. c4 {[%clk 0:03:02]} 2...
e6 {[%clk 0:02:56.2]} 3. Nf3 {[%clk 0:03:01.9]} 3... Nf6 {[%clk 0:02:56.9]} 4.
g3 {[%clk 0:03:03]} 4... Be7 {[%clk 0:02:57.2]} 5. Bg2 {[%clk 0:03:03.9]} 5...
O-O {[%clk 0:02:58.7]} 6. O-O {[%clk 0:03:05.4]} 6... dxc4 {[%clk 0:03:00.3]} 7.
Qc2 {[%clk 0:03:06.6]} 7... c6 {[%clk 0:03:01.8]} 8. Qxc4 {[%clk 0:03:05.8]}
8... b5 {[%clk 0:03:03.3]} 9. Qc2 {[%clk 0:03:05.1]} 9... Bb7 {[%clk 0:03:04.7]}
10. Rd1 {[%clk 0:03:06]} 10... Nbd7 {[%clk 0:03:05.2]} 11. Ne5 {[%clk
0:02:36.6]} 11... Nxe5 {[%clk 0:02:56]} 12. dxe5 {[%clk 0:02:38.5]} 12... Nd5
{[%clk 0:02:52.3]} 13. e4 {[%clk 0:01:58.5]} 13... Nb4 {[%clk 0:02:47.9]} 14.
Qe2 {[%clk 0:01:59.5]} 14... Qc7 {[%clk 0:02:42.7]} 15. a3 {[%clk 0:01:58.3]}
15... Na6 {[%clk 0:02:42]} 16. Bf4 {[%clk 0:01:53.4]} 16... Rad8 {[%clk
0:02:39.1]} 17. Nc3 {[%clk 0:01:35.7]} 17... Nc5 {[%clk 0:02:38.1]} 18. Be3
{[%clk 0:00:12.1]} 18... Nb3 {[%clk 0:02:35.8]} 19. Rxd8 {[%clk 0:00:12]} 19...
Rxd8 {[%clk 0:02:30.5]} 20. Rd1 {[%clk 0:00:13.9]} 20... a6 {[%clk 0:02:23.6]}
21. f4 {[%clk 0:00:13.9]} 21... c5 {[%clk 0:02:23.4]} 22. Rxd8+ {[%clk
0:00:14.2]} 22... Qxd8 {[%clk 0:02:22.6]} 23. Qd1 {[%clk 0:00:15.4]} 23... Qxd1+
{[%clk 0:02:18.1]} 24. Nxd1 {[%clk 0:00:17.3]} 24... Kf8 {[%clk 0:02:12.7]} 25.
Kf2 {[%clk 0:00:18.5]} 25... Ke8 {[%clk 0:02:11.8]} 26. Ke2 {[%clk 0:00:19.9]}
26... Kd7 {[%clk 0:02:12.7]} 27. Nf2 {[%clk 0:00:21.1]} 27... c4 {[%clk
0:02:10.1]} 28. h4 {[%clk 0:00:22.1]} 28... a5 {[%clk 0:02:04.6]} 29. Kd1 {[%clk
0:00:23.1]} 29... b4 {[%clk 0:02:01.4]} 30. axb4 {[%clk 0:00:23.6]} 30... axb4
{[%clk 0:02:03.3]} 31. g4 {[%clk 0:00:24.6]} 31... Bxh4 {[%clk 0:02:00.8]} 32.
g5 {[%clk 0:00:23.7]} 32... Kc6 {[%clk 0:01:56.2]} 33. Ng4 {[%clk 0:00:22.5]}
33... Kb5 {[%clk 0:01:54.1]} 34. Ke2 {[%clk 0:00:20.5]} 34... Nc5 {[%clk
0:01:53.6]} 35. Bxc5 {[%clk 0:00:20.4]} 35... Kxc5 {[%clk 0:01:54.4]} 36. Kf3
{[%clk 0:00:21.4]} 36... c3 {[%clk 0:01:45.7]} 37. bxc3 {[%clk 0:00:22.2]} 37...
b3 {[%clk 0:01:46.9]} 38. Ke3 {[%clk 0:00:23.9]} 38... b2 {[%clk 0:01:47.9]} 0-1

[Event "*** Titled Tuesday Blitz"]
[Site "Chess.com"]
[Date "2018.06.05"]
[Round "8"]
[White "djano"]
[Black "gemarin"]
[Result "1-0"]
[WhiteElo "2362"]
[BlackElo "1813"]
[TimeControl "180+2"]
[EndTime "14:54:37 PDT"]
[Termination "djano won by resignation"]

1. d4 {[%clk 0:03:01.9]} 1... d5 {[%clk 0:02:59.7]} 2. c4 {[%clk 0:03:01.3]}
2... c6 {[%clk 0:03:00.5]} 3. cxd5 {[%clk 0:03:01.7]} 3... cxd5 {[%clk
0:03:01.2]} 4. Bf4 {[%clk 0:03:03.2]} 4... Nc6 {[%clk 0:03:01.1]} 5. Nc3 {[%clk
0:03:04.2]} 5... e6 {[%clk 0:03:00.9]} 6. e3 {[%clk 0:03:03.9]} 6... Bd6 {[%clk
0:03:00.9]} 7. Bg3 {[%clk 0:03:02]} 7... Nf6 {[%clk 0:03:00.8]} 8. Bd3 {[%clk
0:03:01.7]} 8... O-O {[%clk 0:03:01]} 9. Nf3 {[%clk 0:03:01.2]} 9... Re8 {[%clk
0:03:01.2]} 10. Ne5 {[%clk 0:03:01.2]} 10... Bb8 {[%clk 0:02:49.3]} 11. Rc1
{[%clk 0:02:58]} 11... Qa5 {[%clk 0:02:46.5]} 12. O-O {[%clk 0:02:56.4]} 12...
Ne7 {[%clk 0:02:46.9]} 13. Qf3 {[%clk 0:02:36.7]} 13... Qb6 {[%clk 0:02:44.5]}
14. Rc2 {[%clk 0:02:30.9]} 14... Ng6 {[%clk 0:02:43.5]} 15. h4 {[%clk
0:02:20.6]} 15... Nxe5 {[%clk 0:02:38.9]} 16. dxe5 {[%clk 0:02:22]} 16... Nd7
{[%clk 0:02:38.3]} 17. Qh5 {[%clk 0:02:12.7]} 17... Nf8 {[%clk 0:02:37.5]} 18.
Nb5 {[%clk 0:01:55.3]} 18... Bd7 {[%clk 0:01:51.1]} 19. Nd6 {[%clk 0:01:53]}
19... Bxd6 {[%clk 0:01:45.9]} 20. exd6 {[%clk 0:01:54.9]} 20... Rac8 {[%clk
0:01:35.3]} 21. Rfc1 {[%clk 0:01:51.7]} 21... Ng6 {[%clk 0:01:31.6]} 22. Rc7
{[%clk 0:01:45.1]} 22... Rxc7 {[%clk 0:01:23.4]} 23. Rxc7 {[%clk 0:01:45.6]}
23... Bb5 {[%clk 0:01:17.5]} 24. Bxg6 {[%clk 0:01:41.4]} 24... hxg6 {[%clk
0:01:13.8]} 25. Qf3 {[%clk 0:01:42.3]} 25... Rf8 {[%clk 0:01:13.9]} 26. h5
{[%clk 0:01:37.3]} 26... gxh5 {[%clk 0:00:57.7]} 27. Qxh5 {[%clk 0:01:39.2]}
27... a5 {[%clk 0:00:47.3]} 28. Be5 {[%clk 0:01:37.4]} 28... Bd3 {[%clk
0:00:41.4]} 29. Qg5 {[%clk 0:01:31.2]} 29... Bg6 {[%clk 0:00:41.1]} 30. Qe7
{[%clk 0:01:31.9]} 30... Qb5 {[%clk 0:00:29.3]} 31. Qxf8+ {[%clk 0:01:30.3]}
31... Kxf8 {[%clk 0:00:27.5]} 32. Rc8+ {[%clk 0:01:31.6]} 32... Qe8 {[%clk
0:00:25.8]} 33. d7 {[%clk 0:01:33]} 33... f6 {[%clk 0:00:25.2]} 34. Bd6+ {[%clk
0:01:31.3]} 1-0

[Event "*** Titled Tuesday Blitz"]
[Site "Chess.com"]
[Date "2018.06.05"]
[Round "8"]
[White "RiskyDecision"]
[Black "rasmussvane"]
[Result "1-0"]
[WhiteElo "2522"]
[BlackElo "2555"]
[TimeControl "180+2"]
[EndTime "14:55:01 PDT"]
[Termination "RiskyDecision won by resignation"]

1. d4 {[%clk 0:03:01.9]} 1... d5 {[%clk 0:03:01.1]} 2. c4 {[%clk 0:03:02.4]}
2... c6 {[%clk 0:03:02.5]} 3. cxd5 {[%clk 0:03:00.7]} 3... cxd5 {[%clk
0:03:03.3]} 4. Bf4 {[%clk 0:03:02.1]} 4... Nc6 {[%clk 0:03:04.1]} 5. e3 {[%clk
0:03:03.5]} 5... Nf6 {[%clk 0:03:05.4]} 6. Nc3 {[%clk 0:03:04.2]} 6... Bf5
{[%clk 0:03:06.9]} 7. Qb3 {[%clk 0:03:00]} 7... Na5 {[%clk 0:03:08]} 8. Qa4+
{[%clk 0:03:01.1]} 8... Bd7 {[%clk 0:03:09.4]} 9. Qc2 {[%clk 0:03:02]} 9... e6
{[%clk 0:03:10.4]} 10. Bd3 {[%clk 0:03:00.8]} 10... Be7 {[%clk 0:02:37.1]} 11.
h3 {[%clk 0:02:58.1]} 11... Ne4 {[%clk 0:02:37.7]} 12. Nge2 {[%clk 0:02:51.6]}
12... f5 {[%clk 0:02:22.4]} 13. O-O {[%clk 0:02:51.4]} 13... O-O {[%clk
0:02:23.3]} 14. f3 {[%clk 0:02:39.6]} 14... Nf6 {[%clk 0:02:17]} 15. e4 {[%clk
0:02:27.5]} 15... dxe4 {[%clk 0:02:06.2]} 16. fxe4 {[%clk 0:02:27.7]} 16... fxe4
{[%clk 0:02:07.6]} 17. Nxe4 {[%clk 0:02:24.7]} 17... Nd5 {[%clk 0:02:08.5]} 18.
Bd2 {[%clk 0:02:16.1]} 18... Rc8 {[%clk 0:02:09.2]} 19. Nc5 {[%clk 0:02:06.2]}
19... Nf6 {[%clk 0:01:26.1]} 20. b4 {[%clk 0:01:44.4]} 20... Nc6 {[%clk
0:01:24.2]} 21. Qb3 {[%clk 0:01:44.8]} 21... Bxc5 {[%clk 0:01:15.6]} 22. dxc5
{[%clk 0:01:45]} 22... Ne5 {[%clk 0:01:15]} 23. Bc2 {[%clk 0:01:31.8]} 23... Bb5
{[%clk 0:01:08.4]} 24. Qxe6+ {[%clk 0:01:12]} 24... Nf7 {[%clk 0:01:09.1]} 25.
Bc3 {[%clk 0:01:02.2]} 25... Qd5 {[%clk 0:00:21.4]} 26. Rxf6 {[%clk 0:00:52.9]}
26... Qg5 {[%clk 0:00:21.6]} 27. Rxf7 {[%clk 0:00:46.2]} 1-0

[Event "*** Titled Tuesday Blitz"]
[Site "Chess.com"]
[Date "2018.06.05"]
[Round "8"]
[White "dawtonlms"]
[Black "Vamostodorecto"]
[Result "0-1"]
[WhiteElo "2380"]
[BlackElo "2347"]
[TimeControl "180+2"]
[EndTime "14:55:09 PDT"]
[Termination "Vamostodorecto won by resignation"]

1. e4 {[%clk 0:03:01.9]} 1... e5 {[%clk 0:02:56.4]} 2. Nf3 {[%clk 0:03:02.5]}
2... Nc6 {[%clk 0:02:57.1]} 3. d4 {[%clk 0:03:02.8]} 3... exd4 {[%clk 0:02:59]}
4. Bc4 {[%clk 0:03:03.2]} 4... Nf6 {[%clk 0:03:00]} 5. e5 {[%clk 0:03:04.3]}
5... d5 {[%clk 0:03:00.3]} 6. Bb5 {[%clk 0:03:05.8]} 6... Ne4 {[%clk 0:03:00.2]}
7. Nxd4 {[%clk 0:03:07.1]} 7... Bc5 {[%clk 0:03:01.2]} 8. Be3 {[%clk 0:03:04.7]}
8... O-O {[%clk 0:03:01.5]} 9. Nxc6 {[%clk 0:02:56.6]} 9... bxc6 {[%clk
0:03:03.4]} 10. Bxc6 {[%clk 0:02:49.9]} 10... Bxe3 {[%clk 0:03:00.9]} 11. O-O
{[%clk 0:01:52.6]} 11... Nxf2 {[%clk 0:02:50.7]} 12. Rxf2 {[%clk 0:01:48.4]}
12... Qh4 {[%clk 0:02:47.7]} 13. Qf3 {[%clk 0:01:22.4]} 13... Bxf2+ {[%clk
0:02:45.6]} 14. Qxf2 {[%clk 0:01:24.3]} 14... Qxf2+ {[%clk 0:02:45.3]} 15. Kxf2
{[%clk 0:01:26.2]} 15... Rb8 {[%clk 0:02:45.1]} 16. b3 {[%clk 0:01:27.3]} 16...
Be6 {[%clk 0:02:40.8]} 17. Nd2 {[%clk 0:01:27.4]} 17... Rb6 {[%clk 0:02:36.6]}
18. Ba4 {[%clk 0:01:26]} 18... f6 {[%clk 0:02:27.3]} 19. exf6 {[%clk 0:01:24.2]}
19... Rxf6+ {[%clk 0:02:29.2]} 20. Nf3 {[%clk 0:01:25.6]} 20... Bf5 {[%clk
0:02:25.9]} 21. Rd1 {[%clk 0:01:24.3]} 21... Be4 {[%clk 0:02:18.6]} 22. Ke3
{[%clk 0:01:15]} 22... Bxf3 {[%clk 0:02:00.3]} 23. gxf3 {[%clk 0:01:15.2]} 23...
Rbe6+ {[%clk 0:02:02.1]} 24. Kf2 {[%clk 0:01:16]} 24... c6 {[%clk 0:02:01.4]}
25. c4 {[%clk 0:01:15.9]} 25... dxc4 {[%clk 0:01:58.4]} 26. bxc4 {[%clk
0:01:17.8]} 26... Rd6 {[%clk 0:01:56.2]} 27. Re1 {[%clk 0:01:09.3]} 27... Rd2+
{[%clk 0:01:50.3]} 28. Kg3 {[%clk 0:01:08.3]} 28... Rxa2 {[%clk 0:01:47.5]} 29.
Bb3 {[%clk 0:01:06.1]} 29... Ra3 {[%clk 0:01:46.7]} 30. Rb1 {[%clk 0:01:02.6]}
30... a5 {[%clk 0:01:44.2]} 31. c5+ {[%clk 0:01:01.8]} 31... Kf8 {[%clk
0:01:44.5]} 32. Kg4 {[%clk 0:01:01.8]} 32... g6 {[%clk 0:01:31.2]} 33. Bd1
{[%clk 0:00:56.8]} 33... Kg7 {[%clk 0:01:22.9]} 34. Rb7+ {[%clk 0:00:52]} 34...
Rf7 {[%clk 0:01:22.9]} 35. Rb6 {[%clk 0:00:53]} 35... Rc7 {[%clk 0:01:21.8]} 36.
Bc2 {[%clk 0:00:49.7]} 36... Rc3 {[%clk 0:01:21.4]} 37. Be4 {[%clk 0:00:48.4]}
37... Rxc5 {[%clk 0:01:21.6]} 38. Ra6 {[%clk 0:00:48.1]} 38... h5+ {[%clk
0:01:16.5]} 39. Kf4 {[%clk 0:00:48.3]} 39... Rf7+ {[%clk 0:01:06.1]} 40. Kg3
{[%clk 0:00:48.7]} 40... Rf6 {[%clk 0:01:06.8]} 41. Rxa5 {[%clk 0:00:48.3]}
41... Rxa5 {[%clk 0:01:06.5]} 0-1

[Event "*** Titled Tuesday Blitz"]
[Site "Chess.com"]
[Date "2018.06.05"]
[Round "8"]
[White "hansen"]
[Black "Anton_Demchenko"]
[Result "1-0"]
[WhiteElo "2780"]
[BlackElo "2760"]
[TimeControl "180+2"]
[EndTime "14:55:15 PDT"]
[Termination "hansen won by resignation"]

1. e4 {[%clk 0:03:01.5]} 1... c5 {[%clk 0:02:32.7]} 2. Nf3 {[%clk 0:03:01.2]}
2... d6 {[%clk 0:02:32.9]} 3. d4 {[%clk 0:02:57.9]} 3... cxd4 {[%clk 0:02:33.6]}
4. Nxd4 {[%clk 0:02:59.4]} 4... Nf6 {[%clk 0:02:35.3]} 5. Nc3 {[%clk 0:03:00.9]}
5... Nc6 {[%clk 0:02:37]} 6. Bg5 {[%clk 0:03:01.3]} 6... e6 {[%clk 0:02:38.4]}
7. Qd2 {[%clk 0:03:02]} 7... a6 {[%clk 0:02:39.9]} 8. O-O-O {[%clk 0:02:59.5]}
8... Bd7 {[%clk 0:02:40.7]} 9. h4 {[%clk 0:02:57.8]} 9... h6 {[%clk 0:02:13.8]}
10. Be3 {[%clk 0:02:57.8]} 10... Ng4 {[%clk 0:01:43.3]} 11. Nxc6 {[%clk
0:02:57.2]} 11... bxc6 {[%clk 0:01:44.5]} 12. Bf4 {[%clk 0:02:58.1]} 12... e5
{[%clk 0:01:45.4]} 13. Bg3 {[%clk 0:02:56]} 13... Be7 {[%clk 0:01:40.7]} 14. Be2
{[%clk 0:02:56.2]} 14... Qb6 {[%clk 0:01:03.6]} 15. f3 {[%clk 0:02:39.2]} 15...
Nf6 {[%clk 0:00:55.5]} 16. f4 {[%clk 0:02:30.7]} 16... O-O {[%clk 0:00:47.1]}
17. fxe5 {[%clk 0:02:29]} 17... dxe5 {[%clk 0:00:49]} 18. Bxe5 {[%clk
0:02:25.9]} 18... Be6 {[%clk 0:00:50.4]} 19. Qf4 {[%clk 0:02:02.5]} 19... Nd7
{[%clk 0:00:32.4]} 20. Bd4 {[%clk 0:01:49.8]} 20... Qa5 {[%clk 0:00:33.2]} 21.
Bg4 {[%clk 0:01:40.9]} 21... Bxg4 {[%clk 0:00:19.2]} 22. Qxg4 {[%clk 0:01:41.2]}
22... Ne5 {[%clk 0:00:20.8]} 23. Qf5 {[%clk 0:01:27.3]} 23... Bd6 {[%clk
0:00:09.1]} 24. g4 {[%clk 0:01:14.3]} 24... Rab8 {[%clk 0:00:10.3]} 25. g5
{[%clk 0:00:58.2]} 25... h5 {[%clk 0:00:09.3]} 26. g6 {[%clk 0:00:53.5]} 26...
Rxb2 {[%clk 0:00:06.1]} 27. Kxb2 {[%clk 0:00:54]} 27... Nc4+ {[%clk 0:00:04]}
28. Ka1 {[%clk 0:00:53.5]} 28... Qa3 {[%clk 0:00:04.9]} 29. Rb1 {[%clk 0:00:49]}
29... Bc5 {[%clk 0:00:02.1]} 30. Qxc5 {[%clk 0:00:49]} 1-0